bitfinex/quotes_ETHUSD_20241122
["timestamp","ask_amount","ask_price","bid_price","bid_amount"]
[1732236166438,3.00187,3331.3,3330.6,2.7022]
[1732236166735,3.03924446,3331.5,3330.7,2.70212]
[1732236166933,3.00146,3331.8,3330.6,2.70221]
[1732236167104,3.00146,3331.8,3330.6,3.00111]
[1732236167306,3.00146,3331.8,3330.6,0.2989]
[1732236167536,3.00146,3331.8,3330.5,0.7603]
[1732236167537,0.33766898,3331.7,3330.7,0.2989]
[1732236167737,3.00192,3331.2,3330.7,0.2989]
[1732236167968,3.00204,3331.1,3330.7,0.2989]
[1732236168172,3.00185,3331.3,3330.7,0.2989]
[1732236168333,0.03752568,3331.2,3330.7,0.2989]
[1732236168744,0.7809,3331.0,3330.0,0.7603]
[1732236168947,3.00281,3330.3,3329.3,0.7603]
[1732236169173,3.00281,3330.3,3329.5,2.70308]
[1732236169471,3.00255,3330.5,3329.4,2.7031]
[1732236169472,3.00284,3330.2,3329.4,2.7031]
[1732236169675,0.300255,3330.4,3329.7,0.2989]
[1732236169978,3.00273,3330.3,3329.7,0.2989]
[1732236170336,3.00255,3330.5,3329.7,3.00181]
[1732236170538,3.302975,3330.4,3329.7,3.00181]
[1732236171135,0.300255,3330.4,3329.7,3.00178]
[1732236171335,3.04008589,3330.5,3329.8,2.7028]
[1732236171647,3.00228,3330.8,3330.1,0.2989]
[1732236171953,3.00228,3330.8,3329.8,0.30017]
[1732236171954,3.00248,3330.6,3329.9,2.70277]
[1732236172537,3.00219,3330.9,3330.1,2.70255]
[1732236172739,3.00249,3330.6,3330.2,0.7603]
[1732236172975,0.03753477,3330.5,3329.8,0.2989]
[1732236173297,3.00265,3330.4,3329.8,0.2989]
[1732236174481,3.00232,3330.8,3330.1,0.2989]
[1732236174638,3.00239,3330.7,3330.1,0.2989]
[1732236174840,3.0022,3330.9,3330.1,0.2989]
[1732236175165,3.0022,3330.9,3330.3,3.00129]
[1732236175166,0.30022,3330.9,3330.3,3.00129]
[1732236175365,3.00195,3331.2,3330.6,0.2989]
[1732236175673,0.300184,3331.2,3330.8,0.2989]
[1732236175881,3.03951594,3331.2,3330.8,0.2989]
[1732236176374,3.00211,3331.0,3330.8,0.2989]
[1732236176580,3.30615377,3330.9,3330.8,0.2989]
[1732236176744,3.00229,3330.8,3330.3,0.2989]
[1732236177075,0.34149373,3330.9,3330.3,0.2989]
[1732236177379,3.00202,3331.1,3330.3,0.2989]
[1732236177552,3.00225,3330.9,3330.3,0.2989]
[1732236178241,3.00225,3330.9,3330.3,3.00134]
[1732236178473,0.03752995,3330.8,3330.3,0.2989]
[1732236178702,3.00179,3331.4,3329.8,2.70285]
[1732236178703,3.00248,3330.6,3330.4,0.2989]
[1732236178841,0.03753528,3330.5,3330.4,0.2989]
[1732236179044,3.00261,3330.5,3330.4,0.2989]
[1732236179536,3.00296,3330.1,3329.5,0.2989]
[1732236179736,3.04054018,3330.0,3329.5,0.2989]
[1732236180288,0.03754018,3330.0,3329.5,0.2989]
[1732236180487,0.600509,3330.4,3329.7,0.2989]
[1732236180647,0.600509,3330.4,3329.9,0.2989]
[1732236180648,3.00264,3330.4,3329.9,0.2989]
[1732236181456,3.00279,3330.3,3329.9,0.2989]
[1732236181677,3.00279,3330.3,3329.8,0.2989]
[1732236181879,3.303069,3330.3,3329.8,0.2989]
[1732236182086,0.300279,3330.3,3330.0,0.2989]
[1732236182256,0.30399194,3330.5,3330.0,0.2989]
[1732236182662,0.30399194,3330.5,3329.4,0.7603]
[1732236182663,0.30399194,3330.5,3330.2,0.2989]
[1732236183351,0.30399194,3330.5,3330.2,1.0592]
[1732236183552,0.30399194,3330.5,3330.2,3.76169]
[1732236183788,3.00232,3330.8,3330.2,1.0592]
[1732236184279,3.0,3331.2,3330.2,1.0592]
[1732236184280,0.03753323,3330.7,3330.2,1.0592]
[1732236184445,3.00264,3330.4,3330.3,0.2989]
[1732236184650,3.03975616,3330.9,3330.3,0.2989]
[1732236184864,3.00245,3330.7,3330.3,0.2989]
[1732236185060,0.300245,3330.6,3330.3,0.2989]
[1732236185352,3.00262,3330.5,3330.0,0.2989]
[1732236185892,3.00265,3330.4,3330.0,0.2989]
[1732236186047,3.6332015,3330.4,3330.0,0.2989]
[1732236186248,3.302765,3330.6,3330.0,3.00159]
[1732236186512,3.00221,3330.9,3330.3,0.2989]
[1732236186788,3.300221,3330.9,3330.2,0.2989]
[1732236186994,3.300221,3330.9,3330.4,0.2989]
[1732236187355,0.6302351,3330.8,3330.4,0.2989]
[1732236187657,3.6325151,3330.8,3330.4,0.2989]
[1732236187861,0.300221,3330.9,3330.5,0.2989]
[1732236188248,0.300221,3330.9,3330.5,1.0592]
[1732236188593,3.00204,3331.1,3330.5,1.0592]
[1732236189094,3.00206,3331.1,3330.5,1.0592]
[1732236189391,3.00239,3330.7,3330.6,0.2989]
[1732236189752,0.03753191,3330.8,3330.6,0.2989]
[1732236190160,3.00226,3330.9,3330.6,0.2989]
[1732236190399,3.00226,3330.9,3330.4,0.2989]
[1732236190774,3.00228,3330.8,3330.4,0.2989]
[1732236191100,3.0021,3331.0,3330.4,0.2989]
[1732236191267,3.00194,3331.2,3330.7,0.2989]
[1732236191899,0.37809,3331.3,3330.7,0.2989]
[1732236192061,0.37809,3331.3,3330.9,0.2989]
[1732236192062,3.37998,3331.3,3330.9,0.2989]
[1732236192457,3.00176,3331.4,3330.9,0.2989]
[1732236192697,3.00159,3331.6,3330.9,3.00083]
[1732236192993,0.03752473,3331.5,3331.0,0.2989]
[1732236193301,0.03752473,3331.5,3330.4,0.2989]
[1732236193302,3.00247,3330.6,3330.4,0.2989]
[1732236193662,3.0021,3331.0,3330.4,0.2989]
[1732236194000,3.03977856,3330.9,3330.4,0.2989]
[1732236194209,3.00228,3330.8,3330.4,0.2989]
[1732236194363,3.00212,3331.0,3330.4,0.2989]
[1732236194558,3.00212,3331.0,3330.4,3.00127]
[1732236194898,3.00201,3331.1,3330.6,0.2989]
[1732236195074,3.00177,3331.4,3330.6,0.2989]
[1732236195280,3.00216,3331.0,3330.6,0.2989]
[1732236195962,3.00216,3331.0,3330.5,0.2989]
[1732236196316,3.00216,3331.0,3330.4,0.2989]
[1732236196658,0.03752746,3331.4,3330.4,0.2989]
[1732236196659,0.300216,3330.9,3330.4,0.2989]
[1732236196865,3.00233,3330.8,3330.4,0.2989]
[1732236197294,0.03752858,3330.7,3330.5,0.2989]
[1732236197475,3.00253,3330.6,3330.5,0.2989]
[1732236198306,3.00253,3330.6,3330.0,0.2989]
[1732236198468,3.00253,3330.6,3330.2,0.2989]
[1732236198671,3.00262,3330.5,3330.2,0.2989]
[1732236199086,3.00253,3330.6,3330.2,0.2989]
[1732236199477,3.00253,3330.6,3330.1,0.2989]
[1732236199694,3.00265,3330.4,3330.0,0.5627]
[1732236200004,3.00253,3330.6,3330.1,0.2989]
[1732236200498,3.0036,3329.4,3329.2,0.5627]
[1732236200702,3.0036,3329.4,3328.8,3.26632]
[1732236200908,3.00338,3329.6,3328.9,0.859262]
[1732236201083,3.00338,3329.6,3329.1,0.2989]
[1732236201778,3.0032,3329.8,3329.1,0.2989]
[1732236202105,3.00307,3330.0,3329.4,0.2989]
[1732236203200,3.80283,3330.2,3329.3,0.2989]
[1732236203201,3.00309,3329.9,3329.3,0.2989]
[1732236203902,0.8,3329.4,3327.7,2.70449]
[1732236204075,3.52621446,3329.7,3327.5,0.4117]
[1732236204076,3.00467,3328.2,3327.5,0.4117]
[1732236204270,3.00467,3328.2,3327.5,0.723349]
[1732236204468,3.80447,3328.4,3327.5,0.723349]
[1732236204668,3.01318,3329.8,3327.5,0.723349]
[1732236204669,0.8,3328.9,3327.5,0.723349]
[1732236204890,0.03755592,3328.8,3327.6,0.2989]
[1732236205098,3.8,3328.7,3327.7,0.2989]
[1732236205402,3.8,3328.7,3326.1,0.01]
[1732236205403,3.00571,3327.0,3326.2,2.70571]
[1732236205571,3.00559,3327.2,3325.7,6.23240446]
[1732236205775,3.00546,3327.3,3326.5,2.7055]
[1732236205986,0.8,3327.8,3326.6,0.2989]
[1732236206216,0.03756959,3327.7,3326.8,0.2989]
[1732236206404,3.00526,3327.5,3326.8,0.2989]
[1732236206912,3.00508,3327.7,3326.8,0.2989]
[1732236207110,3.00494,3327.9,3327.1,3.11674]
[1732236207408,3.74064704,3328.6,3327.6,3.00354]
[1732236207588,3.74064704,3328.6,3327.6,0.2989]
[1732236207589,3.00456,3328.3,3327.6,0.2989]
[1732236207916,0.03756137,3328.2,3327.6,0.2989]
[1732236208103,3.00483,3328.0,3327.6,0.2989]
[1732236208422,3.00489,3328.0,3327.3,0.2989]
[1732236208744,3.04218136,3328.2,3327.2,0.311674]
[1732236208878,3.00481,3328.0,3327.2,2.70495]
[1732236209277,3.00499,3327.8,3327.1,0.4117]
[1732236209972,3.00509,3327.7,3327.1,0.4117]
[1732236210177,0.03756415,3327.9,3327.1,0.4117]
[1732236210483,3.0052,3327.6,3326.9,2.70521]
[1732236210680,0.0375644,3327.5,3326.7,3.11707]
[1732236210879,3.00555,3327.2,3326.7,0.4117]
[1732236211298,0.03756851,3327.8,3326.7,0.4117]
[1732236211299,3.00565,3327.1,3326.7,0.4117]
[1732236211502,3.00565,3327.1,3326.3,0.4117]
[1732236211707,3.00565,3327.1,3326.3,1.03489945]
[1732236212079,3.83375,3327.1,3326.3,0.4117]
[1732236212280,3.0058,3326.9,3326.3,0.4117]
[1732236212498,3.00598,3326.7,3325.7,3.11788]
[1732236212696,3.00581,3326.9,3326.2,2.70571]
[1732236213011,3.0055,3327.3,3326.5,2.70553]
[1732236213214,3.0055,3327.3,3326.3,2.70569]
[1732236213430,3.00563,3327.1,3326.3,2.70569]
[1732236213736,3.00563,3327.1,3326.4,2.70561]
[1732236214294,3.83336,3327.5,3325.7,0.4117]
[1732236214496,3.00566,3327.1,3326.1,2.70586]
[1732236214724,3.00566,3327.1,3326.4,2.70561]
[1732236214934,0.03757165,3327.2,3326.4,2.70561]
[1732236215232,0.03757165,3327.2,3326.2,0.270586]
[1732236215441,0.03757165,3327.2,3326.6,2.70545]
[1732236215653,3.04313164,3327.2,3325.8,0.69040645]
[1732236215815,3.04313164,3327.2,3326.4,2.70561]
[1732236216495,0.8281,3327.5,3325.8,3.39647645]
[1732236216844,0.03757027,3327.4,3326.3,2.70563]
[1732236217198,3.00571,3327.0,3326.3,2.7057]
[1732236217398,3.83342,3327.5,3326.7,2.70537]
[1732236217605,0.8281,3327.5,3326.7,2.70537]
[1732236217806,0.86567026,3327.9,3326.9,2.70514]
[1732236218107,0.8281,3327.9,3327.1,2.70499]
[1732236218309,3.83305,3327.9,3327.1,2.70499]
[1732236218518,3.04263642,3327.8,3326.9,2.70517]
[1732236218738,0.8281,3327.6,3326.5,3.00438]
[1732236219045,0.85508289,3327.6,3326.8,2.70527]
[1732236219228,0.85508289,3327.6,3326.5,0.2989]
[1732236219229,0.15426515,3327.5,3326.7,0.2989]
[1732236219543,3.00535,3327.4,3326.7,0.2989]
[1732236219941,3.86025289,3327.6,3326.7,3.00427]
[1732236220148,3.00536,3327.4,3326.7,0.2989]
[1732236220347,3.00547,3327.3,3326.6,0.2989]
[1732236220553,3.00536,3327.4,3326.6,0.2989]
[1732236220756,0.42194853,3327.4,3326.7,2.70531]
[1732236220921,0.42194853,3327.4,3326.8,0.2989]
[1732236221259,0.42194853,3327.4,3326.8,3.00417]
[1732236221625,3.00544,3327.3,3326.8,0.2989]
[1732236221832,3.00563,3327.1,3326.4,0.2989]
[1732236222165,0.7759,3326.9,3326.4,0.2989]
[1732236222762,0.775,3327.3,3326.6,2.7054]
[1732236222962,0.775,3327.6,3326.9,3.00409]
[1732236223320,0.03756877,3327.5,3326.9,0.2989]
[1732236223520,0.775,3327.6,3327.1,2.70504]
[1732236223720,0.775,3327.6,3326.9,2.70518]
[1732236223967,0.775,3328.0,3327.3,2.70484]
[1732236224172,0.775,3328.0,3327.4,2.70481]
[1732236224771,3.00533,3327.5,3327.1,0.2989]
[1732236224915,0.33810361,3327.4,3327.1,0.2989]
[1732236225124,3.34345361,3327.4,3327.1,0.2989]
[1732236225426,3.04292061,3327.4,3327.1,0.2989]
[1732236225722,3.00545,3327.3,3326.5,3.11723]
[1732236225917,0.81257067,3327.2,3326.6,0.2989]
[1732236226124,3.81816067,3327.2,3326.6,0.2989]
[1732236226350,3.81816067,3327.2,3326.3,0.2989]
[1732236226351,3.78125,3326.4,3326.3,0.2989]
[1732236226555,0.775,3326.4,3325.5,2.70635]
[1732236226733,0.775,3326.4,3325.7,2.70616]
[1732236226934,3.78125,3326.4,3325.7,2.70616]
[1732236227158,3.78188,3325.7,3325.6,0.25]
[1732236227468,3.78188,3325.7,3325.6,0.2425]
[1732236227673,3.00707,3325.5,3325.0,0.3634425]
[1732236227878,3.00661,3326.0,3325.0,0.3634425]
[1732236228075,0.03758718,3325.9,3325.1,0.60592525]
[1732236228233,0.775,3325.7,3325.0,0.3634425]
[1732236228647,0.775,3325.7,3325.1,2.70664]
[1732236228971,0.775,3326.1,3325.2,2.70657]
[1732236229130,0.775,3326.1,3325.4,2.7064]
[1732236229568,0.775,3326.1,3325.3,0.270657]
[1732236229569,3.7809,3326.8,3325.9,2.70602]
[1732236229738,3.00598,3326.7,3325.7,2.70619]
[1732236229942,3.00623,3326.5,3325.8,2.7061]
[1732236230346,3.00598,3326.7,3326.0,2.70595]
[1732236230548,0.775,3326.8,3326.2,2.70575]
[1732236230962,6.53175446,3327.2,3326.1,2.70585]
[1732236230963,3.78054,3327.2,3326.1,2.70585]
[1732236231165,3.78054,3327.2,3325.9,0.6542]
[1732236231166,0.775,3327.2,3326.2,0.270585]
[1732236231330,3.00542,3327.4,3326.5,2.70546]
[1732236231536,3.00546,3327.3,3326.6,2.70545]
[1732236231770,3.00546,3327.3,3326.6,2.65545]
[1732236231937,0.03757226,3327.2,3326.6,2.65545]
[1732236232137,0.43012145,3327.8,3326.4,0.6542]
[1732236232351,3.77997,3327.9,3327.4,2.70479]
[1732236232352,0.775,3327.9,3327.4,2.70479]
[1732236232591,3.77954,3328.3,3327.5,2.70472]
[1732236233155,3.77954,3328.3,3327.5,2.65472]
[1732236233486,3.77954,3328.3,3327.3,2.70489]
[1732236233487,0.03756164,3328.2,3327.3,2.70489]
[1732236233655,0.38171816,3328.1,3327.2,0.6542]
[1732236233851,0.38171816,3328.1,3327.5,2.70466]
[1732236234384,0.38171816,3328.1,3327.4,2.7048]
[1732236234385,3.38642816,3328.1,3327.4,2.7048]
[1732236234551,0.03756164,3328.2,3327.2,0.6542]
[1732236234552,3.00506,3327.8,3327.2,0.6542]
[1732236234758,0.775,3327.6,3326.7,2.7053]
[1732236235088,3.00535,3327.4,3326.7,2.7053]
[1732236235293,0.03756974,3327.3,3326.7,2.7053]
[1732236235499,0.03756974,3327.3,3326.5,2.70552]
[1732236235500,0.775,3327.6,3326.4,0.6542]
[1732236235666,3.77988,3328.0,3327.1,2.70499]
[1732236235864,3.77988,3328.0,3326.4,0.6542]
[1732236235865,0.775,3328.0,3326.4,0.6542]
[1732236236161,3.77981,3328.0,3327.2,2.70489]
[1732236236362,3.52621446,3328.4,3327.8,2.70447]
[1732236236363,0.775,3328.4,3327.8,2.70447]
[1732236236778,3.81664652,3328.8,3328.0,2.70428]
[1732236236973,0.38166465,3328.7,3328.0,2.70428]
[1732236237172,0.03755631,3328.6,3328.0,2.70428]
[1732236237345,0.38166465,3328.7,3328.2,2.70415]
[1732236237545,3.77908,3328.8,3327.9,2.70432]
[1732236237792,3.00428,3328.6,3327.8,2.70444]
[1732236237960,0.0375563,3328.5,3327.8,2.70444]
[1732236238361,0.0375563,3328.5,3327.9,2.70439]
[1732236238577,0.37953073,3328.5,3328.0,2.70429]
[1732236238885,0.0375563,3328.5,3328.0,2.70429]
[1732236239047,0.0375563,3328.6,3328.0,2.70429]
[1732236240587,0.0375563,3328.6,3328.2,2.70416]
[1732236240891,0.0375563,3328.6,3328.0,2.70428]
[1732236241092,0.0375563,3328.6,3328.0,2.70429]
[1732236241306,3.00426,3328.6,3327.5,2.70473]
[1732236241449,3.00426,3328.6,3327.1,0.6542]
[1732236241450,3.00454,3328.3,3327.1,0.6542]
[1732236241645,0.03756021,3328.2,3327.6,2.7046]
[1732236241888,0.37991803,3328.4,3327.6,2.7046]
[1732236242617,3.04207954,3328.4,3327.5,2.70468]
[1732236242954,3.77961,3328.3,3327.6,2.70463]
[1732236243147,0.38171695,3328.2,3327.2,2.70497]
[1732236243377,0.775,3328.3,3327.9,2.70439]
[1732236243577,0.301372,3329.1,3328.0,0.6542]
[1732236243761,0.775,3329.7,3328.4,2.704]
[1732236243967,0.377821,3329.6,3328.4,2.704]
[1732236244375,0.377821,3329.6,3328.9,2.70352]
[1732236244376,3.04090498,3329.6,3328.9,2.70352]
[1732236244752,3.04090498,3329.6,3329.0,2.6535]
[1732236245093,0.3815905,3329.5,3328.7,2.70374]
[1732236245302,0.3815905,3329.5,3328.5,2.70391]
[1732236245303,3.00356,3329.4,3328.5,2.70391]
[1732236245451,3.04095498,3329.6,3328.0,0.6542]
[1732236245651,0.3815815,3329.5,3329.0,2.70349]
[1732236245945,3.04091498,3329.6,3329.0,2.70349]
[1732236246145,3.04091498,3329.6,3328.6,2.7038]
[1732236246146,3.00361,3329.4,3328.6,2.7038]
[1732236246459,3.00361,3329.4,3328.6,2.6538]
[1732236246729,3.00379,3329.2,3328.0,0.6542]
[1732236246935,0.775,3329.7,3327.3,0.01]
[1732236246936,3.00424,3328.7,3327.7,2.70454]
[1732236247098,3.00424,3328.7,3327.5,0.6542]
[1732236247099,0.03755612,3328.6,3327.5,0.6542]
[1732236247299,0.30417961,3328.5,3327.9,2.70434]
[1732236247541,3.30858961,3328.5,3327.5,3.35892]
[1732236247695,3.00446,3328.4,3327.8,2.70446]
[1732236247896,1.075446,3328.3,3327.8,2.70446]
[1732236248431,1.11300233,3328.3,3327.6,2.70465]
[1732236248604,1.11300233,3328.3,3327.2,0.6542]
[1732236248811,0.775,3328.3,3328.0,0.2989]
[1732236249511,3.0,3328.8,3328.2,3.00306]
[1732236249714,1.375401,3328.7,3328.2,0.2989]
[1732236250026,3.77918,3328.7,3328.2,0.2989]
[1732236250842,3.04181643,3328.6,3328.0,0.2989]
[1732236251057,3.00451,3328.4,3328.0,0.2989]
[1732236251337,3.00469,3328.2,3328.0,0.2989]
[1732236251714,3.00469,3328.2,3327.6,0.2989]
[1732236251913,3.60936593,3328.2,3327.6,0.2989]
[1732236252941,3.60936593,3328.2,3327.5,0.2989]
[1732236253300,3.382198,3328.6,3328.1,0.2989]
[1732236253501,0.775,3328.7,3328.1,3.00314]
[1732236253972,0.775,3328.7,3328.1,0.2989]
[1732236254099,3.00433,3328.6,3328.1,0.2989]
[1732236254305,0.377933,3328.5,3328.3,0.2989]
[1732236254529,3.0039,3329.0,3328.4,3.0029]
[1732236254710,0.37561,3328.9,3328.4,0.2989]
[1732236254920,0.37561,3328.9,3327.8,0.6542]
[1732236254921,0.7522,3329.1,3328.7,0.2989]
[1732236255120,0.7522,3329.5,3329.1,0.2989]
[1732236255323,0.7522,3329.5,3329.1,3.0023]
[1732236255524,0.7522,3329.5,3329.1,0.2989]
[1732236255859,0.375557,3329.4,3329.1,0.2989]
[1732236256033,3.79319616,3329.5,3329.1,0.2989]
[1732236256346,0.78974616,3329.5,3329.2,0.2989]
[1732236256514,1.16904778,3329.5,3329.2,0.2989]
[1732236257122,4.17251778,3329.5,3329.0,0.2989]
[1732236257327,3.00356,3329.4,3329.0,0.2989]
[1732236257649,0.71760778,3329.3,3329.0,0.2989]
[1732236257867,3.75601,3329.1,3329.0,0.2989]
[1732236258150,3.79356299,3329.1,3327.9,0.2989]
[1732236258370,3.00409,3328.8,3328.2,0.2989]
[1732236258528,0.3793563,3329.0,3328.4,0.2989]
[1732236258718,3.75601,3329.1,3328.4,0.2989]
[1732236258719,3.00409,3328.8,3328.4,0.2989]
[1732236259157,3.04164391,3328.8,3328.4,0.2989]
[1732236259518,3.00425,3328.7,3328.5,0.2989]
[1732236260153,3.04153393,3329.0,3328.5,0.2989]
[1732236260154,3.00406,3328.9,3328.5,0.2989]
[1732236260459,3.00426,3328.6,3328.5,0.2989]
[1732236260663,3.00418,3328.7,3328.5,0.2989]
[1732236260823,0.34172948,3328.6,3328.5,0.2989]
[1732236261030,3.34598948,3328.6,3328.5,0.2989]
[1732236261366,3.34598948,3328.6,3327.5,0.2989]
[1732236261367,4.09392948,3328.6,3327.5,0.2989]
[1732236261669,4.09392948,3328.6,3327.4,2.70479]
[1732236261670,3.00479,3328.1,3327.6,0.2989]
[1732236261832,3.00451,3328.4,3327.8,0.2989]
[1732236262159,0.7522,3328.6,3327.8,0.599239]
[1732236262344,0.7522,3328.6,3328.1,0.2989]
[1732236262553,3.00409,3328.8,3328.3,0.2989]
[1732236262853,0.7522,3328.9,3328.3,3.00292]
[1732236262854,3.7522,3328.9,3328.3,3.00292]
[1732236263066,3.00393,3329.0,3328.3,3.00292]
[1732236263218,3.7522,3329.2,3328.3,0.2989]
[1732236263566,3.00418,3328.7,3328.2,0.2989]
[1732236264241,3.00384,3329.1,3328.6,0.2989]
[1732236264642,0.7522,3329.2,3328.8,2.40325]
[1732236264842,3.0036,3329.4,3328.9,0.2989]
[1732236265048,3.75563,3329.6,3328.9,0.2989]
[1732236265347,0.7522,3329.6,3329.2,0.2989]
[1732236265534,3.00355,3329.4,3329.2,0.2989]
[1732236266165,3.75562,3329.6,3329.2,0.2989]
[1732236266367,0.41309393,3329.6,3329.0,0.2989]
[1732236266523,3.00329,3329.7,3329.0,0.2989]
[1732236266724,3.00329,3329.7,3329.0,2.70199]
[1732236266966,3.79007,3330.0,3329.4,0.2989]
[1732236267271,3.00315,3329.9,3329.4,0.2989]
[1732236267566,3.00319,3329.8,3329.4,0.2989]
[1732236268067,3.00331,3329.7,3329.2,0.2989]
[1732236268364,0.300331,3329.6,3329.2,0.2989]
[1732236268569,0.03754303,3329.7,3329.2,0.2989]
[1732236268718,3.04072303,3329.8,3329.2,0.2989]
[1732236268923,3.00327,3329.7,3329.2,0.2989]
[1732236269175,3.00327,3329.7,3329.1,2.70192]
[1732236269461,3.00302,3330.0,3329.1,0.2989]
[1732236269621,3.34660414,3329.9,3329.2,2.40296]
[1732236269822,0.34343414,3329.9,3329.2,2.40296]
[1732236270152,3.00321,3329.8,3329.2,2.40296]
[1732236270325,3.78979,3330.3,3329.7,2.4026]
[1732236270525,3.00279,3330.3,3329.7,2.4026]
[1732236270825,3.00262,3330.5,3329.8,2.40251]
[1732236271033,0.378954,3330.5,3329.9,2.40243]
[1732236271430,3.00246,3330.6,3330.0,2.40239]
[1732236271778,3.0023,3330.8,3330.1,2.40231]
[1732236272070,0.787,3330.9,3330.2,0.2989]
[1732236272359,0.787,3331.3,3330.3,0.9531]
[1732236272569,3.0021,3331.1,3330.3,3.35523]
[1732236272774,3.03969809,3331.0,3330.3,0.9531]
[1732236272927,0.30396981,3330.9,3330.3,0.9531]
[1732236273328,3.30621981,3330.9,3330.3,0.9531]
[1732236273623,3.00237,3330.7,3330.3,0.9531]
[1732236273830,3.00264,3330.4,3329.9,0.9531]
[1732236274062,3.3402659,3330.6,3329.9,3.35555]
[1732236274271,0.0375289,3330.6,3329.9,0.9531]
[1732236274579,3.00275,3330.3,3329.9,0.9531]
[1732236274728,3.00248,3330.6,3329.9,0.9531]
[1732236274929,3.00237,3330.7,3329.9,0.9531]
[1732236275157,3.00265,3330.4,3329.9,0.9531]
[1732236275365,3.302915,3330.4,3329.9,0.9531]
[1732236275565,3.00315,3329.9,3329.3,0.2989]
[1732236275727,0.03753298,3330.3,3329.3,0.2989]
[1732236275929,3.00275,3330.3,3329.3,0.2989]
[1732236276127,3.4117515,3330.3,3329.4,2.40283]
[1732236276331,3.00282,3330.2,3329.6,2.40268]
[1732236276566,3.00282,3330.2,3329.4,2.40283]
[1732236276768,3.34414215,3330.1,3329.4,2.40283]
[1732236276952,3.00296,3330.1,3329.3,2.70175]
[1732236277268,3.00319,3329.8,3329.1,3.05724]
[1732236277479,3.00332,3329.7,3329.1,0.6542]
[1732236277645,3.00319,3329.8,3329.1,0.6542]
[1732236277646,3.00319,3329.8,3329.2,2.40297]
[1732236278170,0.787,3330.5,3329.3,0.2989]
[1732236278331,3.00269,3330.4,3329.8,0.6542]
[1732236278677,3.00292,3330.1,3329.8,0.6542]
[1732236278859,3.00303,3330.0,3329.8,0.6542]
[1732236279038,3.00292,3330.1,3329.8,0.6542]
[1732236279461,3.00424,3328.7,3328.0,3.05799]
[1732236279665,3.00381,3329.1,3328.0,0.6542]
[1732236279865,3.00426,3328.7,3328.0,0.6542]
[1732236280179,3.00426,3328.7,3328.0,3.05799]
[1732236280364,6.00807,3328.9,3328.1,2.40376]
[1732236280676,0.7836,3329.7,3328.1,0.546186]
[1732236280982,0.7836,3329.7,3328.6,0.6542]
[1732236280983,3.00365,3329.3,3328.6,0.6542]
[1732236281349,3.00346,3329.5,3328.7,2.40328]
[1732236281555,3.00354,3329.4,3328.7,2.40328]
[1732236281864,3.00345,3329.5,3328.7,2.40328]
[1732236282042,3.00336,3329.6,3328.7,2.40328]
[1732236282238,3.00356,3329.4,3328.7,2.40328]
[1732236283239,3.00309,3329.9,3328.7,2.40332]
[1732236283447,3.00309,3329.9,3329.0,2.40309]
[1732236283751,3.00312,3329.9,3329.2,3.05713]
[1732236284845,3.00326,3329.8,3329.2,0.6542]
[1732236285583,3.00309,3329.9,3329.2,3.05713]
[1732236286370,3.00319,3329.8,3329.2,3.05713]
[1732236286764,0.300292,3330.0,3329.3,2.4029]
[1732236287788,3.00311,3329.9,3329.3,2.4029]
[1732236288443,3.00306,3330.0,3329.3,2.40284]
[1732236288662,3.00306,3330.0,3329.4,2.40281]
[1732236288864,3.00284,3330.2,3329.5,2.40275]
[1732236289285,3.00266,3330.4,3329.7,2.40261]
[1732236289463,4.13622145,3330.9,3329.7,2.40261]
[1732236289464,3.00273,3330.3,3329.8,0.9539]
[1732236290485,0.35262145,3330.6,3329.8,0.9539]
[1732236290688,3.00287,3330.2,3329.8,0.9539]
[1732236291589,3.00287,3330.2,3329.8,0.2997]
[1732236291786,3.00339,3329.6,3329.4,0.6542]
[1732236292283,3.00318,3329.8,3329.4,0.6542]
[1732236292858,3.00284,3330.2,3329.4,0.6542]
[1732236293179,3.00309,3329.9,3329.4,0.6542]
[1732236294946,3.00318,3329.8,3329.4,0.6542]
[1732236295387,3.00334,3329.7,3329.4,0.6542]
[1732236296193,3.00282,3330.2,3329.5,0.2997]
[1732236296353,3.00302,3330.0,3329.5,0.2997]
[1732236296550,3.00336,3329.6,3329.5,0.2997]
[1732236297257,3.00336,3329.6,3329.2,0.2997]
[1732236297593,3.00363,3329.3,3329.2,0.2997]
[1732236297781,3.00351,3329.5,3329.2,0.2997]
[1732236297965,3.00357,3329.4,3329.2,0.2997]
[1732236298165,3.00341,3329.6,3329.2,0.2997]
[1732236298367,0.7836,3329.8,3328.9,0.2997]
[1732236298581,3.52621446,3329.9,3329.1,0.2997]
[1732236298884,3.00309,3329.9,3329.3,2.70259]
[1732236299088,3.00291,3330.1,3329.5,2.70244]
[1732236299457,3.7836,3330.6,3329.5,2.70244]
[1732236299458,3.00264,3330.4,3329.5,0.2997]
[1732236299660,3.00336,3329.6,3329.5,0.2997]
[1732236300081,3.00336,3329.6,3329.1,0.2997]
[1732236300251,3.00318,3329.8,3329.1,0.2997]
[1732236300455,3.00318,3329.8,3329.1,2.70274]
[1732236300778,3.00327,3329.7,3329.1,2.70274]
[1732236301591,0.39016127,3330.2,3329.1,0.2997]
[1732236301894,3.00339,3329.6,3329.1,0.2997]
[1732236302807,3.04050039,3330.1,3329.1,0.2997]
[1732236302957,3.00369,3329.3,3329.1,0.2997]
[1732236303391,3.00348,3329.5,3329.1,0.2997]
[1732236303556,4.12290218,3330.0,3329.1,0.2997]
[1732236303557,3.00363,3329.4,3329.1,0.2997]
[1732236303758,3.00367,3329.3,3329.1,0.2997]